Workbook

Sheet Sheet1
C1: 場所 | D1: 価格 | E1: 収益 | F1: 収益率 | G1: 土地 | H1: 建物 | I1: 築 | J1: 年 | K1: 容積率
B2: 1 | C2: 東京都目黒区八雲 | D2: 39800 | F2: =+E2/D2 -> 0 | G2: 52.25 | H2: 104.53 | I2: 1985 | J2: =2023-I2 -> 38 | K2: =+H2/G2 -> 2.000574163
B3: =+B2+1 -> 2 | C3: 大阪市浪速区桜川 | D3: 15500 | E3: =47.2*12 -> 566.4 | F3: =+E3/D3 -> 0.03654193548 | G3: 102.1 | H3: 328.23 | I3: 1966 | J3: =2023-I3 -> 57 | K3: =+H3/G3 -> 3.214789422
B4: =+B3+1 -> 3 | C4: 東京都台東区上野 | D4: 35500 | E4: 2485 | F4: 0.07 | G4: 3.95 | H4: 318 | I4: 1988 | J4: 35 | K4: 80.50632911
B5: 4 | C5: 東京都品川区戸越 | D5: 72000 | E5: 3960 | F5: 0.055 | G5: 54.36 | H5: 132.98 | I5: 2007 | J5: 16 | K5: 2.446284032
B6: 5 | C6: 千葉県市川市 | E6: 1915 | G6: 186.02 | H6: 295.19 | I6: 1989 | J6: 34 | K6: 1.586872379
B7: 6 | C7: 東京都台東区上野 | D7: 139000 | E7: 4795 | F7: 0.0345 | G7: 51.96 | H7: 199.95 | I7: 1979 | J7: 44 | K7: 3.848152425
B8: 7 | C8: さいたま市浦和区北浦和 | D8: 61800 | E8: 3133 | F8: 0.0507 | G8: 291.83 | H8: 387.54 | I8: 1988 | J8: 35 | K8: 1.327964911
B9: 8 | C9: 東京都港区芝大門 | D9: 80000 | E9: 3522 | F9: 0.044025 | G9: 31.91 | H9: 207.44 | I9: 1991 | J9: 32 | K9: 6.500783453
B10: 9 | C10: 東京都中央区銀座8丁目 | D10: 89800 | E10: 2630 | F10: 0.02928730512 | G10: 31.71 | H10: 156.93 | I10: 1992 | J10: 31 | K10: 4.948912015
B11: 10 | C11: 東京都港区新橋 ６丁目 | D11: 50000 | E11: 2253 | F11: 0.04506 | G11: 27.92 | H11: 131.56 | I11: 1992 | J11: 31 | K11: 4.712034384
B12: 11 | C12: 東京都台東区上野 １丁目 | D12: 21000 | E12: 1152 | F12: 0.05485714286 | G12: 15.05 | H12: 66.83 | I12: 1963 | J12: 60 | K12: 4.440531561
B13: 12 | C13: 東京都港区南麻布4丁目 | D13: 115000 | E13: 4842 | F13: 0.04210434783 | G13: 66.63 | H13: 327.48 | I13: 1993 | J13: 30 | K13: 4.914903197
B14: 13 | C14: 東京都中央区月島3丁目 | D14: 185000 | E14: 7829 | F14: 0.04231891892 | G14: 52 | H14: 231.83 | I14: 2020 | J14: 3 | K14: 4.458269231
B15: 14 | C15: 東京都台東区上野4丁目 | D15: 39800 | E15: 2485 | F15: 0.06243718593 | G15: 3.95 | H15: 318.43 | I15: 1988 | J15: 35 | K15: 80.61518987
B16: 15 | C16: 東京都渋谷区本町1丁目 | D16: 24300 | E16: 1370 | F16: 0.05637860082 | G16: 21.81 | H16: 157.91 | I16: 1964 | J16: 59 | K16: 7.240256763
B17: 16 | C17: 東京都葛飾区金町6丁目 | D17: 176000 | E17: 13004 | F17: 0.07388636364 | G17: 195 | H17: 1011 | I17: 2001 | J17: 22 | K17: 5.184615385
B18: 17 | C18: 東京都港区赤坂2丁目 | D18: 216000 | E18: 6248 | F18: 0.02892592593 | G18: 68.51 | H18: 223.61 | I18: 2022 | J18: 1 | K18: 3.26390308
B19: 18 | C19: 東京都渋谷区代々木3丁目 | D19: 420000 | E19: 16800 | F19: 0.04 | G19: 220.16 | H19: 1027.51 | I19: 1992 | J19: 31 | K19: 4.667105741
B20: 19 | C20: 東京都中央区銀座2丁目 | D20: 4200000 | E20: 81750 | F20: 0.01946428571 | G20: 134.36 | H20: 1202.71 | J20: 2023 | K20: 8.951399226
B21: 20 | C21: 東京都中央区銀座8丁目 | D21: 400000 | E21: 11370 | F21: 0.028425 | G21: 35.3 | H21: 254.3 | I21: 2020 | J21: 3 | K21: 7.203966006
B22: 21 | C22: 東京都目黒区祐天寺1丁目 | D22: 35800 | E22: 1478 | F22: 0.0413 | G22: 71.8 | H22: 127 | I22: 1982 | J22: 41 | K22: 1.768802228
B23: 22 | C23: 東京都銀座8丁目 | D23: 2200000 | G23: 142 | H23: =397.8+670.44 -> 1068.24 | I23: 1964 | J23: 59 | K23: 7.522816901
B24: 23 | C24: 東京都世田谷区下馬1丁目 | D24: 49000 | E24: 2609 | F24: 0.05324489796 | G24: 74.01 | H24: 197.36 | I24: 1990 | J24: 33 | K24: 2.666666667
B25: 24 | C25: 大阪市浪速区難波中3丁目 | D25: 60000 | E25: 3786 | F25: 0.0631 | G25: 80.46 | H25: 384.93 | I25: 1990 | J25: 33 | K25: 4.784116331
B26: 25 | C26: 東京都世田谷区上用賀５丁目 | D26: 248000 | E26: 10148 | F26: 0.04091935484 | G26: 545.97 | H26: 917.87 | I26: 1992 | J26: 31 | K26: 1.681172958
B27: 26 | C27: 鹿児島県鹿児島市千日町 | D27: 180000 | F27: 0 | G27: 452.66 | J27: 2023 | K27: 0
B28: 27 | C28: 神奈川県川崎市多摩区登戸 | D28: 5680 | E28: 397 | F28: 0.07 | G28: 8.81 | H28: 26 | I28: 1986 | J28: 37 | K28: 2.951191827
B29: 28 | C29: 東京都台東区花川戸１丁目 | D29: 120000 | E29: 4476 | F29: 0.0373 | G29: 60.97 | H29: 342.06 | I29: 1992 | J29: 31 | K29: 5.610300148
B30: 29 | C30: 東京都新宿区四谷 | D30: 48000 | F30: 0 | G30: 58.09 | H30: 123.49 | I30: 1993 | J30: 30 | K30: 2.125839215
B31: 30 | C31: 神奈川県川崎市川崎区 | D31: 28000 | E31: 1443 | F31: 0.05153571429 | G31: 28.05 | H31: 116.29 | I31: 1977 | J31: 46 | K31: 4.145811052
B32: 31 | C32: 神奈川県横浜市神奈川区 | D32: 47000 | E32: 2947 | F32: 0.06270212766 | G32: 89.22 | H32: 348.51 | I32: 1990 | J32: 33 | K32: 3.906186954
B33: 32 | C33: 東京都港区高輪2丁目 | D33: 95000 | E33: 3501 | F33: 0.03685263158 | G33: 87.76 | H33: 174.37 | I33: 1992 | J33: 31 | K33: 1.98689608
B34: 33 | C34: 東京都台東区台東 | D34: 375000 | E34: 16239 | F34: 0.043304 | G34: 83.02 | H34: 584.7 | I34: 2022 | J34: 1 | K34: 7.042881233
B35: 34 | C35: 東京都台東区東上野 | D35: 32500 | E35: 1469 | F35: 0.0452 | G35: 21.63 | H35: 80.98 | I35: 2022 | J35: 1 | K35: 3.743874249
B36: 35 | C36: 東京都目黒区中根 | D36: 27800 | E36: 1205 | F36: 0.04334532374 | G36: 35 | H36: 119.88 | I36: 1990 | J36: 33 | K36: 3.425142857
B37: 36 | C37: 東京都港区芝5丁目 | D37: 54000 | E37: 2183 | F37: 0.04042592593 | G37: 24.54 | H37: 53.6 | I37: 1999 | J37: 24 | K37: 2.184189079
B38: 37 | C38: 兵庫県神戸市中央区元町通 | D38: 85000 | E38: 5062 | F38: 0.05955294118 | G38: 119.86 | H38: 744.32 | I38: 1992 | J38: 31 | K38: 6.209911563
B39: 38 | C39: 東京都中央区銀座四丁目 | D39: 295000 | E39: 7553 | F39: 0.02560338983 | G39: 31.82 | H39: 187 | I39: 2022 | J39: 1 | K39: 5.87680704
B40: 39 | C40: 東京都港区六本木2丁目 | D40: 718000 | E40: 28162 | F40: 0.03922284123 | G40: 104.87 | H40: 810.52 | I40: 2023 | J40: 0 | K40: 7.728807094
B41: 40 | C41: 東京都渋谷区代々木３丁目 | D41: 420000 | E41: 16800 | F41: 0.04 | G41: 220.17 | H41: 1027.51 | I41: 1992 | J41: 31 | K41: 4.666893764
B42: 41 | C42: 東京都渋谷区宇田川町 | D42: 1070000 | E42: 26733 | F42: 0.02498411215 | G42: 159.61 | H42: 914.25 | I42: 2006 | J42: 17 | K42: 5.72802456
B43: 42 | C43: 東京都台東区西浅草3丁目 | D43: 132500 | E43: 5964 | F43: 0.04501132075 | G43: 119.8 | H43: 473.26 | I43: 2000 | J43: 23 | K43: 3.950417362
B44: 43 | C44: 大阪市此花 区島屋一丁 目 | D44: 53000 | E44: 4932 | F44: 0.09305660377 | G44: 20 | H44: 65.41 | I44: 1985 | J44: 38 | K44: 3.2705
B45: 44 | C45: 東京都千代田区九段北4 丁目 | D45: 155000 | E45: 5936 | F45: 0.0383 | G45: 39.45 | H45: 220.87 | I45: 2023 | J45: 0 | K45: 5.598732573
B46: 45 | C46: 東京都中央区⽇本橋⼩伝⾺町 | D46: 82500 | E46: 3448 | F46: 0.0418 | G46: 31.71 | H46: 190.99 | I46: 2020 | J46: 3 | K46: 6.023021129
B47: 46 | C47: 東京都世田谷区北沢2丁目 | D47: 169000 | E47: 5928 | F47: 0.03507692308 | G47: 33.94 | H47: 169.5 | I47: 2024 | J47: -1 | K47: 4.994107248
B48: 47 | C48: 東京都台東区浅草橋１丁目 | D48: 158000 | E48: 5709 | F48: 0.03613291139 | G48: 62.83 | H48: 304.77 | I48: 1992 | J48: 31 | K48: 4.85070826
B49: 48 | C49: 東京都目黒区鷹番 | D49: 66980 | E49: 2880 | F49: 0.043 | G49: 39 | H49: 134 | I49: 2023 | J49: 0 | K49: 3.435897436
B50: 49 | C50: 大阪府東大阪末広町 | D50: 19300 | E50: 1930 | F50: 0.1 | G50: 41.4 | H50: 409.6 | I50: 1989 | J50: 34 | K50: 9.893719807
B51: 50 | C51: 東京都台東区浅草1丁目 | D51: 47000 | E51: 2376 | F51: 0.05055319149 | G51: 40.06 | H51: 121.8 | I51: 1981 | J51: 42 | K51: 3.040439341
B52: 51 | C52: 東京都中央区銀座1丁目 | E52: 5028 | G52: 29.69 | H52: 230.81 | I52: 1980 | J52: 43 | K52: 7.773997979
B53: 52
B54: 53
B55: 54
B56: 55
B57: 56
B58: 57
B59: 58
B60: 59
B61: 60
B62: 61
B63: 62
B64: 63
B65: 64
B66: 65
B67: 66 | F67: =+E67/D67 -> 
B68: =+B67+1 -> 67
B69: 68
B70: 69
B71: 70
B72: 71
B73: 72
B74: 73
B75: 74
B76: 75
B77: 76
B78: 77
B79: 78
B80: 79
B81: 80
B82: 81
B83: 82
B84: 83
B85: 84
B86: 85
B87: 86
B88: 87
B89: 88
B90: 89
B91: 90
B92: 91
B93: 92
B94: 93
B95: 94
B96: 95
B97: 96
B98: 97
B99: 98
B100: 99
B101: 100
B102: 101
B103: 102
B104: 103
B105: 104
B106: 105
B107: 106
B108: 107
B109: 108
B110: 109
B111: 110
B112: 111
B113: 112
B114: 113
B115: 114
B116: 115
B117: 116
B118: 117
B119: 118
B120: 119
B121: 120
B122: 121
B123: 122
B124: 123
B125: 124
B126: 125
B127: 126
B128: 127
B129: 128
B130: 129
B131: 130 | F131: =+E131/D131 -> 
B132: =+B131+1 -> 131
B133: 132
B134: 133
B135: 134
B136: 135
B137: 136
B138: 137
B139: 138
B140: 139
B141: 140
B142: 141
B143: 142
B144: 143
B145: 144
B146: 145
B147: 146
B148: 147
B149: 148
B150: 149
B151: 150
B152: 151
B153: 152
B154: 153
B155: 154
B156: 155
B157: 156
B158: 157
B159: 158
B160: 159
B161: 160
B162: 161
B163: 162
B164: 163
B165: 164
B166: 165
B167: 166
B168: 167
B169: 168
B170: 169
B171: 170
B172: 171
B173: 172
B174: 173
B175: 174
B176: 175
B177: 176
B178: 177
B179: 178
B180: 179
B181: 180
B182: 181

Sheet Sheet2
B2: 番号 | C2: 場所 | D2: 価格 | E2: 収益 | F2: 収益率 | G2: 土地 | H2: 建物 | I2: 築 | J2: 年 | K2: 容積率
B3: 16 | C3: 東京都葛飾区金町6丁目 | D3: 176000 | E3: 13004 | F3: =+E3/D3 -> 0.07388636364 | G3: 195 | H3: 1011 | I3: 2001 | J3: =2023-I3 -> 22 | K3: =+H3/G3 -> 5.184615385
B4: 3 | C4: 東京都台東区上野 | D4: 35500 | E4: 2485 | F4: =+E4/D4 -> 0.07 | G4: 3.95 | H4: 318 | I4: 1988 | J4: 35 | K4: 80.50632911
B5: 27 | C5: 神奈川県川崎市多摩区登戸 | D5: 5680 | E5: 397 | F5: 0.07 | G5: 8.81 | H5: 26 | I5: 1986 | J5: 37 | K5: 2.951191827
B6: 24 | C6: 大阪市浪速区難波中3丁目 | D6: 60000 | E6: 3786 | F6: =+E6/D6 -> 0.0631 | G6: 80.46 | H6: 384.93 | I6: 1990 | J6: 33 | K6: 4.784116331
B7: 31 | C7: 神奈川県横浜市神奈川区 | D7: 47000 | E7: 2947 | F7: 0.06270212766 | G7: 89.22 | H7: 348.51 | I7: 1990 | J7: 33 | K7: 3.906186954
B8: 14 | C8: 東京都台東区上野4丁目 | D8: 39800 | E8: 2485 | F8: 0.06243718593 | G8: 3.95 | H8: 318.43 | I8: 1988 | J8: 35 | K8: 80.61518987
B9: 37 | C9: 兵庫県神戸市中央区元町通 | D9: 85000 | E9: 5062 | F9: 0.05955294118 | G9: 119.86 | H9: 744.32 | I9: 1992 | J9: 31 | K9: 6.209911563
B10: 15 | C10: 東京都渋谷区本町1丁目 | D10: 24300 | E10: 1370 | F10: 0.05637860082 | G10: 21.81 | H10: 157.91 | I10: 1964 | J10: 59 | K10: 7.240256763
B11: 4 | C11: 東京都品川区戸越 | D11: 72000 | E11: 3960 | F11: 0.055 | G11: 54.36 | H11: 132.98 | I11: 2007 | J11: 16 | K11: 2.446284032
B12: 11 | C12: 東京都台東区上野 １丁目 | D12: 21000 | E12: 1152 | F12: 0.05485714286 | G12: 15.05 | H12: 66.83 | I12: 1963 | J12: 60 | K12: 4.440531561
B13: 23 | C13: 東京都世田谷区下馬1丁目 | D13: 49000 | E13: 2609 | F13: 0.05324489796 | G13: 74.01 | H13: 197.36 | I13: 1990 | J13: 33 | K13: 2.666666667
B14: 30 | C14: 神奈川県川崎市川崎区 | D14: 28000 | E14: 1443 | F14: 0.05153571429 | G14: 28.05 | H14: 116.29 | I14: 1977 | J14: 46 | K14: 4.145811052
B15: 7 | C15: さいたま市浦和区北浦和 | D15: 61800 | E15: 3133 | F15: 0.0507 | G15: 291.83 | H15: 387.54 | I15: 1988 | J15: 35 | K15: 1.327964911
B16: 34 | C16: 東京都台東区東上野 | D16: 32500 | E16: 1469 | F16: 0.0452 | G16: 21.63 | H16: 80.98 | I16: 2022 | J16: 1 | K16: 3.743874249
B17: 10 | C17: 東京都港区新橋 ６丁目 | D17: 50000 | E17: 2253 | F17: =+E17/D17 -> 0.04506 | G17: 27.92 | H17: 131.56 | I17: 1992 | J17: 31 | K17: 4.712034384
B18: 8 | C18: 東京都港区芝大門 | D18: 80000 | E18: 3522 | F18: 0.044025 | G18: 31.91 | H18: 207.44 | I18: 1991 | J18: 32 | K18: 6.500783453
B19: 35 | C19: 東京都目黒区中根 | D19: 27800 | E19: 1205 | F19: 0.04334532374 | G19: 35 | H19: 119.88 | I19: 1990 | J19: 33 | K19: 3.425142857
B20: 33 | C20: 東京都台東区台東 | D20: 375000 | E20: 16239 | F20: 0.043304 | G20: 83.02 | H20: 584.7 | I20: 2022 | J20: 1 | K20: 7.042881233
B21: 13 | C21: 東京都中央区月島3丁目 | D21: 185000 | E21: 7829 | F21: 0.04231891892 | G21: 52 | H21: 231.83 | I21: 2020 | J21: 3 | K21: 4.458269231
B22: 12 | C22: 東京都港区南麻布4丁目 | D22: 115000 | E22: 4842 | F22: 0.04210434783 | G22: 66.63 | H22: 327.48 | I22: 1993 | J22: 30 | K22: 4.914903197
B23: 21 | C23: 東京都目黒区祐天寺1丁目 | D23: 35800 | E23: 1478 | F23: 0.0413 | G23: 71.8 | H23: 127 | I23: 1982 | J23: 41 | K23: 1.768802228
B24: 25 | C24: 東京都世田谷区上用賀５丁目 | D24: 248000 | E24: 10148 | F24: =+E24/D24 -> 0.04091935484 | G24: 545.97 | H24: 917.87 | I24: 1992 | J24: 31 | K24: 1.681172958
B25: 36 | C25: 東京都港区芝5丁目 | D25: 54000 | E25: 2183 | F25: =+E25/D25 -> 0.04042592593 | G25: 24.54 | H25: 53.6 | I25: 1999 | J25: 24 | K25: 2.184189079
B26: 18 | C26: 東京都渋谷区代々木3丁目 | D26: 420000 | E26: 16800 | F26: =+E26/D26 -> 0.04 | G26: 220.16 | H26: 1027.51 | I26: 1992 | J26: 31 | K26: 4.667105741
B27: 28 | C27: 東京都台東区花川戸１丁目 | D27: 120000 | E27: 4476 | F27: 0.0373 | G27: 60.97 | H27: 342.06 | I27: 1992 | J27: 31 | K27: 5.610300148
B28: 32 | C28: 東京都港区高輪2丁目 | D28: 95000 | E28: 3501 | F28: =+E28/D28 -> 0.03685263158 | G28: 87.76 | H28: 174.37 | I28: 1992 | J28: 31 | K28: 1.98689608
B29: 2 | C29: 大阪市浪速区桜川 | D29: 15500 | E29: =47.2*12 -> 566.4 | F29: =+E29/D29 -> 0.03654193548 | G29: 102.1 | H29: 328.23 | I29: 1966 | J29: 57 | K29: 3.214789422
B30: 6 | C30: 東京都台東区上野 | D30: 139000 | E30: 4795 | F30: 0.0345 | G30: 51.96 | H30: 199.95 | I30: 1979 | J30: 44 | K30: 3.848152425
B31: 9 | C31: 東京都中央区銀座8丁目 | D31: 89800 | E31: 2630 | F31: =+E31/D31 -> 0.02928730512 | G31: 31.71 | H31: 156.93 | I31: 1992 | J31: 31 | K31: 4.948912015
B32: 17 | C32: 東京都港区赤坂2丁目 | D32: 216000 | E32: 6248 | F32: 0.02892592593 | G32: 68.51 | H32: 223.61 | I32: 2022 | J32: 1 | K32: 3.26390308
B33: 20 | C33: 東京都中央区銀座8丁目 | D33: 400000 | E33: 11370 | F33: 0.028425 | G33: 35.3 | H33: 254.3 | I33: 2020 | J33: 3 | K33: 7.203966006
B34: 19 | C34: 東京都中央区銀座2丁目 | D34: 4200000 | E34: 81750 | F34: 0.01946428571 | G34: 134.36 | H34: 1202.71 | J34: 2023 | K34: 8.951399226
B35: 1 | C35: 東京都目黒区八雲 | D35: 39800 | F35: 0 | G35: 52.25 | H35: 104.53 | I35: 1985 | J35: 38 | K35: 2.000574163
B36: 26 | C36: 鹿児島県鹿児島市千日町 | D36: 180000 | F36: 0 | G36: 452.66 | J36: 2023 | K36: 0
B37: 29 | C37: 東京都新宿区四谷 | D37: 48000 | F37: 0 | G37: 58.09 | H37: 123.49 | I37: 1993 | J37: 30 | K37: 2.125839215
B38: 5 | C38: 千葉県市川市 | E38: 1915 | G38: 186.02 | H38: 295.19 | I38: 1989 | J38: 34 | K38: 1.586872379
B39: 22 | C39: 東京都銀座8丁目 | D39: 2200000 | G39: 142 | H39: =397.8+670.44 -> 1068.24 | I39: 1964 | J39: 59 | K39: 7.522816901
